Cogmind - Beta 14 @@@ ROGUE MODE // 2025.03.01 @ 17:47:57 Player: Dosh Result: Destroyed by H-71 Marshal with Heavy Mass Driver Performance ------------- Evolutions (6) 3000 Regions Visited (28) 5600 Robots Destroyed (532) 2660 Value Destroyed (21463) 21463 Prototype IDs (69) 1380 Alien Tech Used (2) 400 Bonus (8585) 8585 TOTAL SCORE: 43088 Bonus ------- Triggered High Security 500 High Alert Combat Kills 4042 Follower Combat Kills 1757 Entered Garrisons 600 Network Hubs Disabled 200 Aligned with FarCom 300 Met Data Miner 300 Acquired ECA 300 Met Zhirov 300 Built Enhanced Grunts 300 Met R17 at Cetus 500 Friendly Fire -514 Cogmind --------- Core Integrity 0/1150 Matter 165/300 Energy 100/100 System Corruption 25% Temperature Cool (0) Movement Core (100) Ox1 Location -4/Factory Parts ------- > --- POWER (2) -------- (None) > --- PROPULSION (4) --- (None) > --- UTILITY (10) ----- (None) > --- WEAPON (3) ------- Vibroblade > --- INVENTORY (5) ---- Field Propulsion Array Field Propulsion Array Advanced Plasma Cannon Peak State ------------ > --- POWER ------------ Neutrino Core Fusion Reactor > --- PROPULSION ------- Centrium Heavy Treads Centrium Heavy Treads > --- UTILITY ---------- High-capacity Storage Unit Long-range Terrain Scanner Experimental Melee Analysis Suite Core Analyzer Precision Matter Filter Improved Weapon Cycler Improved Transmission Jammer Improved Heavy Armor Plating Remote Force Field > --- WEAPON ----------- Gauss Cannon Enhanced Gauss Cannon Enhanced Gauss Cannon > --- INVENTORY -------- Light Particle Reactor Medium Treads Centrium Heavy Treads Advanced Cooling System Advanced Cooling System Advanced Coolant Injector Matter Compressor Experimental Weapon Shielding Improved Medium Armor Plating Improved Medium Armor Plating Long-range Tractor Beam Transdimensional Reconstructor Advanced Plasma Cannon Gauss Cannon Enhanced Gauss Cannon Improved Proton Missile Launcher Lance [Rating: 131] Favorites ----------- Power Cooled Ion Engine Engine Cooled Ion Engine Power Core Enhanced Nuclear Core Reactor Quantum Reactor Propulsion Improved Treads Treads Improved Treads Flight Unit Field Propulsion Array Utility High-capacity Storage Unit Device Advanced Cooling System Storage High-capacity Storage Unit Processor Advanced Targeting Computer Hackware Advanced System Shield Protection Hardened Medium Armor Plating Weapon Mass Driver Ballistic Gun Assault Rifle Ballistic Cannon Mass Driver Launcher Improved Proton Missile Launcher Special Weapon Remote Datajack Slashing Weapon Vibroblade Piercing Weapon Lance Build | -11 -10 -10 -9 -9 -9 -8 -8 -8 -8 -8 -8 -7 -7 -7 -7 -6 -6 -6 -6 -6 -6 -6 -5 -5 -5 -5 -4 -4 ------- Run | Yrd Mat Min Mat Min Exi Min Mat Gar Mat Gar Mat Fac Low Low Dat Pro Fac Gar Ext Cet Arc Hub Fac Upp Upp Zhi Pro Fac Slots Evolved 12 | . . . 2 . . . 2 . . . . 2 . . . . 2 . . . . . 2 . . . . 2 Power 1 | . . . . . . . . . . . . . . . . . 1 . . . . . . . . . . . Propulsion 2 | . . . 1 . . . . . . . . 1 . . . . . . . . . . . . . . . . Utility 8 | . . . 1 . . . 1 . . . . 1 . . . . 1 . . . . . 2 . . . . 2 Weapon 1 | . . . . . . . 1 . . . . . . . . . . . . . . . . . . . . . Parts Attached 340 | 5 5 1 33 2 . . 18 20 16 10 17 31 5 5 . 3 5 20 20 11 . 8 31 4 3 8 . 59 Power 34 | 1 . . 3 . . . 1 1 1 . 3 1 . 1 . . 1 3 3 3 . 1 6 . . 1 . 4 Engine 11 | 1 . . 3 . . . 1 1 1 . 1 . . . . . 1 2 . . . . . . . . . . Core 14 | . . . . . . . . . . . 2 1 . 1 . . . 1 3 . . . 5 . . . . 1 Reactor 9 | . . . . . . . . . . . . . . . . . . . . 3 . 1 1 . . 1 . 3 Propulsion 70 | 2 1 1 13 2 . . 5 3 4 . 6 6 . 3 . 1 1 2 8 2 . 2 4 . . . . 4 Treads 68 | 2 1 1 13 2 . . 5 3 4 . 6 6 . 3 . 1 1 2 8 2 . 2 4 . . . . 2 Leg . | . . . . . . . . . . . . . . . . . . . . . . . . . . . . . Wheel . | . . . . . . . . . . . . . . . . . . . . . . . . . . . . . Hover . | . . . . . . . . . . . . . . . . . . . . . . . . . . . . . Flight 2 | . . . . . . . . . . . . . . . . . . . . . . . . . . . . 2 Utility 141 | . 2 . 6 . . . 5 7 5 10 4 13 5 1 . 2 3 11 7 6 . 4 12 4 2 5 . 27 Device 97 | . . . 4 . . . 3 5 . 5 3 10 5 . . 2 3 9 6 2 . 3 9 4 2 4 . 18 Storage 2 | . 1 . . . . . . . . 1 . . . . . . . . . . . . . . . . . . Processor 6 | . . . . . . . . . . 1 . 1 . . . . . . . . . . 1 . . . . 3 Hackware 4 | . . . . . . . 1 . 2 . . . . . . . . . . . . . 1 . . . . . Protection 32 | . 1 . 2 . . . 1 2 3 3 1 2 . 1 . . . 2 1 4 . 1 1 . . 1 . 6 Artifact . | . . . . . . . . . . . . . . . . . . . . . . . . . . . . . Weapon 95 | 2 2 . 11 . . . 7 9 6 . 4 11 . . . . . 4 2 . . 1 9 . 1 2 . 24 Energy Gun . | . . . . . . . . . . . . . . . . . . . . . . . . . . . . . Energy Cannon . | . . . . . . . . . . . . . . . . . . . . . . . . . . . . . Ballistic Gun 13 | 2 2 . 5 . . . . 2 2 . . . . . . . . . . . . . . . . . . . Ballistic Cannon 57 | . . . 6 . . . 6 4 3 . 4 9 . . . . . 3 2 . . 1 5 . 1 1 . 12 Launcher 20 | . . . . . . . 1 3 1 . . 1 . . . . . 1 . . . . 3 . . . . 10 Special Weapon 1 | . . . . . . . . . . . . 1 . . . . . . . . . . . . . . . . Impact Weapon . | . . . . . . . . . . . . . . . . . . . . . . . . . . . . . Slashing Weapon 2 | . . . . . . . . . . . . . . . . . . . . . . . . . . . . 2 Piercing Weapon 2 | . . . . . . . . . . . . . . . . . . . . . . . 1 . . 1 . . Special Melee Weapon . | . . . . . . . . . . . . . . . . . . . . . . . . . . . . . Unidentified Prototypes 20 | . . . 1 . . . . . 1 . 1 1 1 . . . . . . 3 . . . . . 4 . 8 Corrupted Parts 8 | . . . . . . . . . . . . . . . . . . . . 4 . 3 . . . . . 1 System Corruption 36 | . . . . . . . . . . . . . . . . . . . . 22 . 13 . . . . . 1 Parts Lost 90 | . . 2 5 . . . 3 10 2 . 5 . . . . . . 4 6 . . 4 15 . 1 . . 33 Power 15 | . . . . . . . . 1 . . . . . . . . . 1 2 . . 1 5 . . . . 5 Propulsion 19 | . . 1 1 . . . 1 4 . . 3 . . . . . . 1 2 . . . 1 . . . . 5 Utility 34 | . . 1 2 . . . 1 2 1 . 1 . . . . . . . 1 . . 2 5 . 1 . . 17 Weapon 22 | . . . 2 . . . 1 3 1 . 1 . . . . . . 2 1 . . 1 4 . . . . 6 Highest Loss Streak 10 | . . 1 3 . . . 1 4 1 . 3 . . . . . . 3 2 . . 2 5 . 1 . . 10 To Critical Strikes . | . . . . . . . . . . . . . . . . . . . . . . . . . . . . . Average Slot Usage (%) 92 | . 93 91 97 99 100 100 99 98 99 100 98 97 92 91 92 92 93 92 92 86 86 85 79 82 80 81 82 70 Engine 5 | . 14 14 10 11 11 11 8 9 9 9 5 . . . . . 6 5 6 1 . . . . . . . . Core 3 | . . . . . . . . . . . 3 7 7 7 7 7 6 7 5 1 . . 6 11 11 7 5 2 Reactor 1 | . . . . . . . . . . . . . . . . . . . . 10 13 12 4 . . 2 5 4 Treads 24 | . 28 27 32 32 33 33 26 26 26 27 26 30 30 29 30 30 26 25 25 15 13 13 10 11 11 11 11 8 Device 12 | . . . 13 11 11 11 15 15 7 7 9 12 7 7 7 7 13 13 11 5 6 12 20 21 21 22 23 22 Storage 7 | . 9 14 11 11 11 11 9 9 9 9 9 7 7 7 7 7 6 6 6 6 6 6 5 5 5 5 5 4 Processor 3 | . . . . . . . . . . 2 5 4 7 7 7 7 6 6 6 6 6 5 2 5 5 5 5 7 Hackware 2 | . . . . . . . 2 2 10 10 9 2 . . . . . . . . . . 4 1 . . . . Protection 7 | . 12 5 6 11 11 11 9 8 9 6 3 6 7 7 7 7 6 6 7 18 20 13 5 5 5 5 5 4 Ballistic Gun 3 | . 28 28 4 . . . . 8 16 . . . . . . . . . . . . . . . . . . . Ballistic Cannon 18 | . . . 17 22 22 22 26 18 9 27 25 22 23 23 23 23 20 19 20 20 20 19 10 11 14 14 17 11 Peak Build Rating 131 | 5 8 8 24 23 24 24 32 35 43 43 52 63 65 63 62 62 71 74 77 115 115 115 130 116 116 117 117 131 Average Rating 57 | 3 7 7 17 22 23 23 27 30 38 40 46 59 62 62 62 60 69 70 74 104 115 109 111 115 113 115 117 105 On Entrance 60 | . 5 8 7 23 23 24 24 32 31 38 43 50 63 63 62 62 58 69 74 73 115 115 110 114 116 113 117 117 Naked Turns 15 | . . . . . . . . . . . . . . . . . . . . . . . . . . . . 15 Heaviest Build 144 | 6 48 48 66 66 66 66 72 72 75 73 81 97 97 97 97 97 118 118 115 126 125 125 135 116 122 123 122 144 Greatest Support 160 | 40 40 40 69 69 69 69 69 69 69 65 65 98 98 101 101 101 93 99 109 160 160 160 160 160 160 160 160 160 Greatest Overweight (x) 1 | . 1 1 1 1 . . 1 1 1 1 1 1 . 1 . 1 1 1 1 . . . . . . . . 1 Average Overweight (x) . | . . 1 . . . . . . . . . . . . . . 1 1 . . . . . . . . . . Largest Inventory Capacity 20 | 5 20 20 20 20 20 20 20 20 20 20 20 20 20 20 20 20 20 20 20 20 20 20 20 20 20 20 20 20 Average Capacity 19 | 5 15 20 20 20 20 20 20 20 20 20 20 20 20 20 20 20 20 20 20 20 20 20 20 20 20 20 20 19 Most Carried 20 | 2 10 11 20 20 20 20 20 19 20 20 20 20 20 20 20 20 20 20 20 20 20 20 20 20 20 20 19 18 Average Carried 17 | 1 6 10 16 20 19 19 18 16 18 18 19 19 19 20 20 19 19 19 18 19 20 19 16 19 19 19 19 13 Final Capacity 20 | 5 20 20 20 20 20 20 20 20 20 20 20 20 20 20 20 20 20 20 20 20 20 20 20 20 20 20 20 5 Final Carried 20 | 2 10 10 20 20 20 20 19 16 18 20 20 20 20 20 20 20 20 20 17 20 20 17 20 20 19 19 19 5 Class Distribution -------------------- 29% | Tank 23% | Mutant 16% | Skirmisher 15% | Gunner 7% | Scavenger-Tank 3% | Commander-Tank Dominant Class ---------------- Mutant | -10/Materials Mutant | -10/Mines Mutant | -9/Materials Mutant | -9/Mines Mutant | -9/Exiles Mutant | -8/Mines Tank | -8/Materials Tank | -8/Garrison Tank | -8/Materials Skirmisher | -8/Garrison Skirmisher | -8/Materials Skirmisher | -7/Factory Gunner | -7/Lower Caves Gunner | -7/Lower Caves Gunner | -7/Data Miner Gunner | -6/Proximity Caves Tank | -6/Factory Tank | -6/Garrison Commander-Tank | -6/Extension Scavenger-Tank | -6/Cetus Scavenger-Tank | -6/Archives Scavenger-Tank | -6/Hub_04(d) Gunner | -5/Factory Gunner | -5/Upper Caves Tank | -5/Upper Caves Tank | -5/Zhirov Tank | -4/Proximity Caves Gunner | -4/Factory Resources | -11 -10 -10 -9 -9 -9 -8 -8 -8 -8 -8 -8 -7 -7 -7 -7 -6 -6 -6 -6 -6 -6 -6 -5 -5 -5 -5 -4 -4 ----------- Run | Yrd Mat Min Mat Min Exi Min Mat Gar Mat Gar Mat Fac Low Low Dat Pro Fac Gar Ext Cet Arc Hub Fac Upp Upp Zhi Pro Fac Matter Collected 20022 | 228 308 262 1523 260 . . 973 1274 761 668 1609 2175 547 502 . 442 147 1727 1647 168 . 123 1416 241 357 80 101 2483 Remotely 3390 | . . . . . . . . . . 103 182 422 7 . . . 68 573 348 . . . 243 . . . . 1444 Salvage Created 16581 | . 562 164 1593 280 . . 741 969 956 626 987 1513 162 162 . 264 80 854 1150 . . 79 1635 . 259 435 123 2987 Parts 863 | . 37 10 124 18 . . 42 55 69 37 67 77 5 17 . 9 2 32 37 . . 2 77 . 11 3 2 130 Haulers Intercepted 27 | . 1 . 6 . . . 3 . 3 . 4 2 1 . . . 1 . 1 . . . 1 . . . . 4 Recyclers Shooed 15 | . 1 . 2 . . . 3 . . . . 3 . . . . . . 1 . . . 5 . . . . . Parts Field Recycled . | . . . . . . . . . . . . . . . . . . . . . . . . . . . . . Retrieved Matter . | . . . . . . . . . . . . . . . . . . . . . . . . . . . . . Parts Self-Destructed 49 | . . . . . . . . . . . . . 5 22 . 9 . . . . . . . . 10 1 2 . Prevented 5 | . . . . . . . . . . . . . . . . . . . . . . . . . 5 . . . Kills | -11 -10 -10 -9 -9 -9 -8 -8 -8 -8 -8 -8 -7 -7 -7 -7 -6 -6 -6 -6 -6 -6 -6 -5 -5 -5 -5 -4 -4 ------- Run | Yrd Mat Min Mat Min Exi Min Mat Gar Mat Gar Mat Fac Low Low Dat Pro Fac Gar Ext Cet Arc Hub Fac Upp Upp Zhi Pro Fac Combat Hostiles Destroyed 412 | . 9 10 39 12 . . 22 31 16 18 25 30 5 7 . 9 2 32 24 . . 3 30 . 5 . 3 80 Melee 4 | . . . . . . . . . . . . 1 . . . . . . . . . . 2 . . . . 1 Guns 46 | . 9 9 12 . . . . 5 11 . . . . . . . . . . . . . . . . . . . Cannons 298 | . . . 27 12 . . 22 21 2 18 25 28 5 7 . 9 2 28 24 . . 3 11 . 4 . 3 47 AOE 58 | . . 1 . . . . . 5 3 . . 1 . . . . . 4 . . . . 14 . 1 . . 29 Classes Destroyed 24 | . 6 2 7 . . . 1 1 2 1 1 . . . . 1 . 1 . . . . . . . . . 1 Worker 20 | . . . 3 . . . 1 . 1 . 2 . . . . . . . . . . . 5 . . . . 8 Builder 19 | . . . 2 . . . 1 . 4 . 1 2 . . . . . . . . . . 2 . . . . 7 Tunneler 10 | . . . 2 . . . . . 2 . . 2 . . . . . . . . . . 3 . . . . 1 Hauler 27 | . 1 . 6 . . . 3 . 3 . 4 2 1 . . . 1 . 1 . . . 1 . . . . 4 Recycler 23 | . 1 . 5 . . . . . . . 1 10 . . . . . . . . . . 6 . . . . . Mechanic 2 | . 1 . . . . . . . . . . . . . . . . . . . . . . . . . . 1 Operator 3 | . . . 2 . . . . . . . . . . . . . . . 1 . . . . . . . . . Drone 2 | . . . . . . . . . . . . . . . . 2 . . . . . . . . . . . . Watcher 28 | . 2 . 5 . . . 3 . 3 . 4 6 . . . . 1 . . . . . 2 . . . . 2 Swarmer 68 | . . 3 15 6 . . 4 4 . . 3 . . . . . . 10 . . . 1 13 . . . . 9 Cutter 3 | . . . . . . . . . . 1 . . . . . . . . . . . . . . . . . 2 Saboteur 1 | . . . . . . . . . . . . . . . . . . . . . . . . . . . . 1 Grunt 162 | . 6 2 13 1 . . 11 15 5 8 11 15 5 1 . 5 2 16 10 . . 1 3 . 3 . 2 27 Brawler 12 | . . . 1 4 . . . . 1 . 1 . . 1 . . . . 3 . . . . . 1 . . . Duelist 15 | . . . 1 1 . . 1 1 1 1 . . . . . 2 . 2 1 . . . . . 1 . . 3 Protector 3 | . . . . . . . . . 1 . . . . . . . . . . . . . . . . . . 2 Sentry 71 | . . . 9 . . . 5 8 4 6 7 5 . . . . . 3 8 . . . 5 . . . 1 10 Specialist 12 | . . . . . . . . . 2 . 2 . . . . . . . 1 . . . 1 . . . . 6 Hunter 20 | . . . . . . . 1 2 2 2 . 3 . 3 . . . . . . . . 3 . . . . 4 Programmer 25 | . . . . . . . . 1 . . . 7 . 2 . . . . . . . . 5 . . . . 10 Heavy 2 | . . . . . . . . . . . 1 . . . . . . . . . . . . . . . . 1 Behemoth 2 | . . . . . . . . . . . . . . . . . . 1 1 . . . . . . . . . Lightning 1 | . . . . . . . . . . . . . . . . . . . . . . 1 . . . . . . Subdweller 3 | . 3 . . . . . . . . . . . . . . . . . . . . . . . . . . . Assembled 10 | . . 5 . . . . . . . . . . . . . . . . . . . . . . . . . 5 Thug 2 | . . . . 1 . . . . . . . . . . . . . . 1 . . . . . . . . . Best Kill Streak 37 | . 2 3 9 4 . . 5 6 7 4 7 5 5 3 . 3 2 6 5 . . 2 7 . 3 . 2 37 Combat Bots Only 28 | . 2 3 5 4 . . 4 6 5 4 5 4 5 3 . 3 2 6 5 . . 2 6 . 3 . 2 28 Max Kills in Single Turn 9 | . 1 1 2 2 . . 2 3 2 2 2 2 1 1 . 1 1 3 2 . . 1 5 . 1 . 1 9 Gunslinging . | . . . . . . . . . . . . . . . . . . . . . . . . . . . . . Exploded 7 | . . 1 . . . . . 3 2 . . 1 . . . . . 3 . . . . 3 . 1 . . 7 Melee 1 | . . . . . . . . . . . . 1 . . . . . . . . . . 1 . . . . 1 Uniques/NPCs Destroyed . | . . . . . . . . . . . . . . . . . . . . . . . . . . . . . Combat | -11 -10 -10 -9 -9 -9 -8 -8 -8 -8 -8 -8 -7 -7 -7 -7 -6 -6 -6 -6 -6 -6 -6 -5 -5 -5 -5 -4 -4 -------- Run | Yrd Mat Min Mat Min Exi Min Mat Gar Mat Gar Mat Fac Low Low Dat Pro Fac Gar Ext Cet Arc Hub Fac Upp Upp Zhi Pro Fac Hostile Shots Fired 2556 | . 44 37 198 63 . . 113 166 57 55 149 182 27 30 . 18 9 200 200 . . 109 273 8 17 . 12 589 Missed 744 | . 17 12 49 15 . . 38 34 19 22 46 62 7 8 . 7 1 52 58 . . 41 84 2 6 . 4 160 Damage Taken 25391 | . 372 360 1354 356 . . 735 1461 571 520 1527 1296 326 358 . 208 76 1190 1170 151 . 1342 3608 80 138 . 92 8100 Core 2577 | . 68 31 167 19 . . 104 81 132 32 168 146 15 . . 18 . 75 74 13 . 91 166 25 10 . . 1142 Absorbed by Shields 4862 | . . . 256 141 . . 263 499 193 . . 128 . . . . 77 754 931 25 . . 370 . 102 . 87 1036 Reduced by Siege Mode 331 | . . . . . . . . . . . . . . . . . . . . . . . . . . . 7 324 Redirected to Shielding 309 | . 24 27 . . . . . . . . . . . . . . . . 51 16 . 39 . . . . . 152 Ignored by Resistances 1022 | . . . . . . . . . . . . . . . . . . . . . . . . . . . . 1022 Regen/Repaired (Parts) 2683 | . 118 . 139 . . . 123 . 226 . 305 261 . . . . . . . . . . 1511 . . . . . Core Remaining (%) 63 | 100 . 60 . . . 53 . . . . 6 . . . . 74 . . . . . 70 . . . . 79 . Volleys Fired 1138 | . 41 26 146 30 . . 69 80 55 44 74 86 16 17 . 17 11 72 68 . . 14 86 . 11 . 9 166 Largest 3 | . 2 2 2 2 . . 3 3 3 3 3 3 3 3 . 3 3 3 3 . . 3 3 . 3 . 3 3 Hottest 171 | . 40 40 78 78 . . 117 117 132 132 158 171 171 171 . 171 171 171 171 . . 171 171 . 162 . 162 171 Shots Fired 2825 | . 82 52 291 60 . . 207 226 159 133 206 249 48 52 1 51 33 180 204 1 . 28 131 . 28 . 27 376 Gun 400 | . 82 52 96 . . . . 50 120 . . . . . . . . . . . . . . . . . . . Cannon 2356 | . . . 195 60 . . 207 167 36 133 206 248 48 52 1 51 33 178 204 1 . 28 116 . 23 . 27 342 Launcher 68 | . . . . . . . . 9 3 . . . . . . . . 2 . . . . 15 . 5 . . 34 Special 1 | . . . . . . . . . . . . 1 . . . . . . . . . . . . . . . . Kinetic 2756 | . 82 52 291 60 . . 207 217 156 133 206 248 48 52 1 51 33 178 204 1 . 28 116 . 23 . 27 342 Thermal . | . . . . . . . . . . . . . . . . . . . . . . . . . . . . . Explosive 32 | . . . . . . . . 9 3 . . . . . . . . 2 . . . . 5 . . . . 13 Electromagnetic 36 | . . . . . . . . . . . . . . . . . . . . . . . 10 . 5 . . 21 Robot Hit Streak 40 | . 9 5 9 13 . . 17 16 10 15 20 15 11 9 . 8 11 20 28 . . 7 13 . 4 . 13 40 Robot Miss Streak 9 | . 3 4 5 3 . . 4 5 4 4 3 5 2 1 . 2 3 3 4 1 . 4 8 . 6 . 2 9 Penetration Max 1 | . . . . . . . . . 1 . . 1 1 . . . . 1 1 . . . . . 1 . . 1 Secondary Targets 8 | . . 3 3 . . . . . 2 . . . . . . . . . . . . . . . . . . . Max Gunslinging Chain 1 | . . 1 1 . . . . . 1 . . . . . . . . . . . . . . . . . . . Shots Hit Robots 1671 | . 59 26 181 38 . . 106 115 87 58 104 148 31 34 . 26 21 103 128 . . 15 113 . 13 20 17 228 Core Hits 1014 | . 27 13 74 12 . 2 45 62 50 25 46 57 9 10 . 14 7 56 47 . . 12 140 . 13 6 7 280 Critical Kills 1 | . . . 1 . . . . . . . . . . . . . . . . . . . . . . . . . Critical Parts Destroyed 3 | . . 1 . . . . . . 2 . . . . . . . . . . . . . . . . . . . Critical Strikes 110 | . . 1 5 1 . . 2 3 4 2 9 12 3 5 . 5 . 5 9 . . . 2 . 1 1 2 38 Destroy 4 | . . 1 1 . . . . . 2 . . . . . . . . . . . . . . . . . . . Blast 105 | . . . 4 1 . . 2 3 2 2 9 12 3 5 . 5 . 5 9 . . . 2 . 1 . 2 38 Impale 1 | . . . . . . . . . . . . . . . . . . . . . . . . . . 1 . . Melee Attacks 29 | . . . . . . . . . . . . . . . . . . . . . . . 9 . . 20 . . Impact . | . . . . . . . . . . . . . . . . . . . . . . . . . . . . . Slashing . | . . . . . . . . . . . . . . . . . . . . . . . . . . . . . Piercing 29 | . . . . . . . . . . . . . . . . . . . . . . . 9 . . 20 . . Sneak Attacks 2 | . . . . . . . . . . . . . . . . . . . . . . . 2 . . . . . Combat Hostiles . | . . . . . . . . . . . . . . . . . . . . . . . . . . . . . Follow-up Attacks . | . . . . . . . . . . . . . . . . . . . . . . . . . . . . . Damage Inflicted 61347 | . 778 315 3448 890 . 7 2505 3190 2484 1354 3157 5917 1081 1191 . 1016 686 4146 4749 . . 484 5166 . 614 1376 516 16277 Guns 3952 | . 774 308 806 . . . . 502 1562 . . . . . . . . . . . . . . . . . . . Cannons 42082 | . . . 2607 890 . . 2446 1758 393 1354 3052 5487 1081 1175 . 1016 683 3819 4732 . . 467 2497 . 393 . 516 7716 Explosions 12783 | . . . . . . . . 930 510 . . 257 . . . . . 327 . . . . 2121 . 221 . . 8417 Melee 1613 | . . . . . . . . . . . . . . . . . . . . . . . 237 . . 1376 . . Ramming 917 | . 4 7 35 . . 7 59 . 19 . 105 173 . 16 . . 3 . 17 . . 17 311 . . . . 144 Kinetic 46034 | . 774 308 3413 890 . . 2446 2260 1955 1354 3052 5487 1081 1175 . 1016 683 3819 4732 . . 467 2497 . 393 . 516 7716 Thermal 1051 | . . . . . . . . . . . . 257 . . . . . . . . . . 213 . . . . 581 Explosive 9461 | . . . . . . . . 930 510 . . . . . . . . 327 . . . . 1301 . . . . 6393 Electromagnetic 2271 | . . . . . . . . . . . . . . . . . . . . . . . 607 . 221 . . 1443 Impact . | . . . . . . . . . . . . . . . . . . . . . . . . . . . . . Slashing . | . . . . . . . . . . . . . . . . . . . . . . . . . . . . . Piercing 1613 | . . . . . . . . . . . . . . . . . . . . . . . 237 . . 1376 . . Highest Corruption 39 | . . . . . . . . 1 2 2 2 1 1 2 2 2 . . 1 23 23 39 2 2 . . . 25 Average Corruption 3 | . . . . . . . . 1 1 2 2 1 1 1 2 2 . . 1 19 23 23 1 1 . . . 10 Corruption Purged 2 | . . . . . . . . . . . . . . . . . . . . . . . . 2 . . . . Corruption Blocked . | . . . . . . . . . . . . . . . . . . . . . . . . . . . . . Effects 287 | . . . . . . . . 3 22 18 37 26 2 12 4 22 . . 5 22 3 33 17 4 . . . 57 Message Errors 70 | . . . . . . . . . 4 3 14 3 1 2 . 6 . . 1 6 1 5 5 . . . . 19 Matter Fused 71 | . . . . . . . . . 6 4 9 7 . 6 2 4 . . 1 5 . 8 4 3 . . . 12 Heat Flow Errors 40 | . . . . . . . . 1 1 5 2 3 . 2 . 6 . . . 2 . 5 5 1 . . . 7 Energy Discharges 38 | . . . . . . . . . 5 3 7 3 1 1 1 3 . . . 5 . 4 1 . . . . 4 Parts Rejected 3 | . . . . . . . . . . . . . . . . . . . . . . 1 . . . . . 2 Parts Fused 3 | . . . . . . . . . . . . 1 . . . . . . 1 1 . . . . . . . . Data Loss (minor) 26 | . . . . . . . . 1 1 2 3 6 . . . 1 . . 2 1 2 2 1 . . . . 4 Data Loss (major) 9 | . . . . . . . . 1 1 . 1 1 . . . 1 . . . . . 1 . . . . . 3 Misfires 13 | . . . . . . . . . 3 1 . 2 . 1 1 . . . . 1 . . . . . . . 4 Alerts 4 | . . . . . . . . . 1 . . . . . . 1 . . . 1 . . 1 . . . . . Misdirections 4 | . . . . . . . . . . . . . . . . . . . . . . 4 . . . . . . Weapon Failures 6 | . . . . . . . . . . . 1 . . . . . . . . . . 3 . . . . . 2 Overload Shots . | . . . . . . . . . . . . . . . . . . . . . . . . . . . . . Overflow Damage 1378 | . . . 18 26 . . 25 15 . 9 23 268 27 30 . 12 8 57 68 . . 11 180 . . 141 . 460 Projectiles 839 | . . . 18 26 . . 25 . . 9 9 248 27 30 . 12 8 52 68 . . 11 18 . . . . 278 Explosions 363 | . . . . . . . . 15 . . . 20 . . . . . 5 . . . . 162 . . . . 161 Melee 176 | . . . . . . . . . . . 14 . . . . . . . . . . . . . . 141 . 21 Knockbacks 294 | . . . 17 10 . . 23 10 3 13 13 33 4 11 . 6 5 30 22 . . 4 42 . 2 . 5 41 Impact 7 | . . . . . . . . . . . 2 . . . . . . . . . . . 4 . . . . 1 Kinetic 272 | . . . 15 10 . . 23 10 3 13 10 31 4 11 . 5 5 28 21 . . 4 38 . 2 . 5 34 Secondary 15 | . . . 2 . . . . . . . 1 2 . . . 1 . 2 1 . . . . . . . . 6 Self-Inflicted Damage 1397 | . . . . . . . . 23 . . . 68 . . . . . . . . . . 373 . 20 . . 913 Shots 42 | . . . . . . . . 1 . . . 1 . . . . . . . . . . 7 . 1 . . 32 Rammed 90 | . 1 2 2 . . 2 6 . . . 13 16 . 1 . . 1 . 2 . . 2 36 . . . . 6 Targets Rammed 111 | . 1 2 5 . . 2 7 . 1 . 15 22 . 1 . . 1 . 3 . . 2 42 . . . . 7 Kicked . | . . . . . . . . . . . . . . . . . . . . . . . . . . . . . Crushed 21 | . . . 3 . . . 1 . 1 . 2 6 . . . . . . 1 . . . 6 . . . . 1 Highest Temperature 380 | . 3 2 144 224 . . 135 379 190 307 266 316 298 184 . 380 174 336 253 247 . 179 285 143 198 . 178 224 Average Temperature 80 | . 1 2 41 69 . . 34 182 49 88 40 64 125 53 . 108 64 109 58 123 . 62 71 70 112 . 74 95 Received Heat Transfer 5365 | . 171 78 460 48 . . 240 554 104 225 396 342 180 18 . 99 50 389 265 . . 108 720 12 50 . 12 844 Effects 12 | . . . . . . . . 5 . 3 . 1 . . . 2 . 1 . . . . . . . . . . Shutdowns 2 | . . . . . . . . 1 . . . . . . . 1 . . . . . . . . . . . . Energy Bleed 2 | . . . . . . . . . . . . 1 . . . 1 . . . . . . . . . . . . Interference 6 | . . . . . . . . 3 . 3 . . . . . . . . . . . . . . . . . . Matter Decay 1 | . . . . . . . . 1 . . . . . . . . . . . . . . . . . . . . Damage (minor) 1 | . . . . . . . . . . . . . . . . . . 1 . . . . . . . . . . Siege Activations 8 | . . . . . . . . . . . . . . . . . . . . . . . . . . . 2 6 Total Turns 280 | . . . . . . . . . . . . . . . . . . . . . . . . . . . 31 249 Longest Duration 115 | . . . . . . . . . . . . . . . . . . . . . . . . . . . 25 115 Robots Corrupted 7 | . . . . . . . . . . . . . . . . . . . . . . . 3 . . . . 4 Combat Hostiles 6 | . . . . . . . . . . . . . . . . . . . . . . . 3 . . . . 3 Parts Fried 15 | . . . . . . . . . . . . . . . . . . . . . . . 6 . . . . 9 Impact Corruptions 3 | . . . . . . . . . . . 1 . . . . . . . . . . . . . . . . 2 Robots Melted . | . . . . . . . . . . . . . . . . . . . . . . . . . . . . . Combat Hostiles . | . . . . . . . . . . . . . . . . . . . . . . . . . . . . . Parts Melted 4 | . 2 . . . . . . . . . . 1 . . . . . . . . . . . . . . . 1 Heat Transferred 725 | . . . . . . . . . . . . 200 . . . . . . . . . . 100 . . . . 425 Parts Sabotaged 4 | . . . . . . . . . . . . . . . . . . . 3 . . . . . . . . 1 Parts Stolen . | . . . . . . . . . . . . . . . . . . . . . . . . . . . . . Parts Stripped . | . . . . . . . . . . . . . . . . . . . . . . . . . . . . . Power Chain Reactions 8 | . . . . . . . . . . . . . . . . . . . . . . . 1 . . . . 7 Alert | -11 -10 -10 -9 -9 -9 -8 -8 -8 -8 -8 -8 -7 -7 -7 -7 -6 -6 -6 -6 -6 -6 -6 -5 -5 -5 -5 -4 -4 ------- Run | Yrd Mat Min Mat Min Exi Min Mat Gar Mat Gar Mat Fac Low Low Dat Pro Fac Gar Ext Cet Arc Hub Fac Upp Upp Zhi Pro Fac Peak Influence 1837 | . 210 70 513 397 . . 189 1067 737 896 796 544 . . . . 284 1282 1237 672 188 678 665 . . . . 1837 Initial 672 | . . . . 187 . . . 58 520 187 436 73 . . . . 150 58 672 666 188 65 274 . . . . . Average 366 | . 37 10 243 267 . . 63 513 534 607 233 192 . . . . 170 591 766 559 188 457 399 . . . . 927 Maximum Alert Level 5 | . 1 . 2 1 . . . 3 3 3 3 2 . . . . 1 4 4 2 . 2 2 . . . . 5 Low Security (%) 42 | 100 96 100 42 25 . 100 100 13 . 2 62 67 . . . . 54 9 . . 100 14 19 . . . . 16 Level 1 18 | . 3 . 39 74 . . . 12 21 17 18 12 . . . . 45 25 . . . 5 36 . . . . 23 Level 2 26 | . . . 17 . . . . 43 77 36 13 20 . . . . . 30 51 100 . 80 44 . . . . 10 Level 3 8 | . . . . . . . . 30 . 43 4 . . . . . . 26 31 . . . . . . . . 1 Level 4 2 | . . . . . . . . . . . . . . . . . . 7 16 . . . . . . . . 15 Level 5 1 | . . . . . . . . . . . . . . . . . . . . . . . . . . . . 29 High Security . | . . . . . . . . . . . . . . . . . . . . . . . . . . . . 2 Max Security . | . . . . . . . . . . . . . . . . . . . . . . . . . . . . . Squads Dispatched 85 | . 1 . 4 1 . . 6 . 3 . 3 17 . . . . 1 . 6 . . 8 9 . . . . 26 Investigation 13 | . . . 2 . . . . . . . . 4 . . . . . . 1 . . 3 3 . . . . . Extermination 15 | . . . . . . . . . . . . 6 . . . . . . . . . . 3 . . . . 6 Reinforcement 27 | . 1 . 2 . . . . . 2 . 3 3 . . . . 1 . 3 . . 2 3 . . . . 7 Assault 11 | . . . . 1 . . . . 1 . . 1 . . . . . . 2 . . . . . . . . 6 Garrison 19 | . . . . . . . 6 . . . . 3 . . . . . . . . . 3 . . . . . 7 Intercept . | . . . . . . . . . . . . . . . . . . . . . . . . . . . . . Searches Triggered . | . . . . . . . . . . . . . . . . . . . . . . . . . . . . . Data Miner Redirects 8 | . . . . . . . . . . . . . . . . . . . 2 . . 1 3 . . . . 2 Construction Impeded 7 | . . . . . . . . . 1 . 1 1 . . . . . . 1 . . . 1 . . . . 2 Haulers Reinforced 6 | . . . . . . . . . . . . 2 . . . . . . . . . . 1 . . . . 3 Active Scanning Responses . | . . . . . . . . . . . . . . . . . . . . . . . . . . . . . Cargo Convoy Interrupts 1 | . . . . . . . . . . . . . . . . . . . . . . . . . . . . 1 Stealth | -11 -10 -10 -9 -9 -9 -8 -8 -8 -8 -8 -8 -7 -7 -7 -7 -6 -6 -6 -6 -6 -6 -6 -5 -5 -5 -5 -4 -4 --------- Run | Yrd Mat Min Mat Min Exi Min Mat Gar Mat Gar Mat Fac Low Low Dat Pro Fac Gar Ext Cet Arc Hub Fac Upp Upp Zhi Pro Fac Distress Signals 37 | . 1 . 7 . . . 4 . 3 . 3 3 . . . . . . . 2 . 2 2 . . . . 10 Communications Jammed 86 | . . . . . . . . . . . . . . . . 2 . . 3 . . 4 17 . . . . 60 Distress Signals 83 | . . . . . . . . . . . . . . . . 1 . . 3 . . 4 15 . . . . 60 Times Spotted 622 | . 17 10 61 16 . . 32 33 24 18 40 47 5 13 . 10 7 38 47 10 . 29 42 1 6 . 4 112 Peak Tracking Total 13 | . 3 3 7 5 . . 5 5 5 3 7 8 5 3 . 4 3 6 6 5 . 11 7 1 3 . 3 13 Tactical Retreats 42 | . . 1 8 . . . 4 1 2 . 5 1 . 5 . . . 2 1 . . 4 2 . . . 1 5 Traps | -11 -10 -10 -9 -9 -9 -8 -8 -8 -8 -8 -8 -7 -7 -7 -7 -6 -6 -6 -6 -6 -6 -6 -5 -5 -5 -5 -4 -4 ------- Run | Yrd Mat Min Mat Min Exi Min Mat Gar Mat Gar Mat Fac Low Low Dat Pro Fac Gar Ext Cet Arc Hub Fac Upp Upp Zhi Pro Fac Traps Triggered 36 | . . . 1 . . . 3 5 3 4 1 1 . . . . . 7 4 . . . 6 . . . . 1 Indirectly 3 | . . . . . . . . . . . . . . . . . . . . . . . 3 . . . . . Trap Hack Attempts . | . . . . . . . . . . . . . . . . . . . . . . . . . . . . . Triggered . | . . . . . . . . . . . . . . . . . . . . . . . . . . . . . Disarmed . | . . . . . . . . . . . . . . . . . . . . . . . . . . . . . Reprogrammed . | . . . . . . . . . . . . . . . . . . . . . . . . . . . . . Reused . | . . . . . . . . . . . . . . . . . . . . . . . . . . . . . Traps Extracted . | . . . . . . . . . . . . . . . . . . . . . . . . . . . . . Installed . | . . . . . . . . . . . . . . . . . . . . . . . . . . . . . Triggered 2 | . . . . . . . . . . . . . . 2 . . . . . . . . . . . . . . Machines | -11 -10 -10 -9 -9 -9 -8 -8 -8 -8 -8 -8 -7 -7 -7 -7 -6 -6 -6 -6 -6 -6 -6 -5 -5 -5 -5 -4 -4 ---------- Run | Yrd Mat Min Mat Min Exi Min Mat Gar Mat Gar Mat Fac Low Low Dat Pro Fac Gar Ext Cet Arc Hub Fac Upp Upp Zhi Pro Fac Machines Disabled 82 | . 2 . 3 1 . . 6 3 2 5 4 13 . . . . 2 4 6 1 . 1 20 . . . . 9 Max in Single Turn 6 | . 1 . 1 1 . . 2 1 1 1 1 3 . . . . 1 1 1 . . . 6 . . . . 2 Garrison Access 1 | . . . . . . . . . . . . . . . . . . . . . . . 1 . . . . . Garrison Relay 4 | . . . . . . . . . . 2 . . . . . . . 2 . . . . . . . . . . Network Hub 1 | . . . . . . . . . . . . . . . . . . . . . . 1 . . . . . . Machines Repaired . | . . . . . . . . . . . . . . . . . . . . . . . . . . . . . Machines Dismantled . | . . . . . . . . . . . . . . . . . . . . . . . . . . . . . Machines Sabotaged 1 | . . . . . . . . . . . . . . . . . . . . . . 1 . . . . . . Overloaded Fab Kills . | . . . . . . . . . . . . . . . . . . . . . . . . . . . . . Hacking | -11 -10 -10 -9 -9 -9 -8 -8 -8 -8 -8 -8 -7 -7 -7 -7 -6 -6 -6 -6 -6 -6 -6 -5 -5 -5 -5 -4 -4 --------- Run | Yrd Mat Min Mat Min Exi Min Mat Gar Mat Gar Mat Fac Low Low Dat Pro Fac Gar Ext Cet Arc Hub Fac Upp Upp Zhi Pro Fac Machines Accessed 109 | . 7 . 9 1 2 . 8 3 8 4 9 10 1 1 4 . 3 2 7 . . 5 12 . 2 4 1 6 Terminals 74 | . 6 . 8 1 . . 6 3 5 4 6 3 1 1 . . 2 2 7 . . 5 8 . . . 1 5 Fabricators 2 | . . . . . . . . . . . . 2 . . . . . . . . . . . . . . . . Repair Stations 10 | . 1 . 1 . . . 1 . 1 . 1 3 . . . . . . . . . . 2 . . . . . Recycling Units 2 | . . . . . . . . . . . . 1 . . . . . . . . . . 1 . . . . . Scanalyzers 3 | . . . . . . . . . 1 . 2 . . . . . . . . . . . . . . . . . Garrison Access 6 | . . . . . . . 1 . 1 . . 1 . . . . 1 . . . . . 1 . . . . 1 Total Hacks 363 | . 24 . 33 6 2 . 38 7 28 9 41 35 1 1 23 . 5 2 16 . . 13 33 . 5 17 1 23 Successful 199 | . 13 . 22 3 2 . 25 2 16 2 20 18 1 1 23 . 2 2 4 . . 4 13 . 5 17 1 3 Failed 161 | . 10 . 10 3 . . 12 5 12 7 21 17 . . . . 3 . 12 . . 9 20 . . . . 20 Catastrophic 38 | . . . 3 1 . . . 3 1 3 6 2 . . . . 1 . 5 . . 2 8 . . . . 3 Database Lockouts 3 | . 1 . 1 . . . 1 . . . . . . . . . . . . . . . . . . . . . Manual 144 | . 15 . 14 6 1 . 22 1 17 4 13 5 . . . . 3 . 9 1 . 8 9 . . . . 16 Terminals 230 | . 22 . 27 6 . . 30 7 18 9 26 7 1 1 . . 4 2 16 . . 13 20 . . . 1 20 Fabricators 9 | . . . . . . . . . . . . 9 . . . . . . . . . . . . . . . . Repair Stations 50 | . 2 . 6 . . . 7 . 6 . 6 15 . . . . . . . . . . 8 . . . . . Recycling Units 6 | . . . . . . . . . . . . 3 . . . . . . . . . . 3 . . . . . Scanalyzers 11 | . . . . . . . . . 2 . 9 . . . . . . . . . . . . . . . . . Garrison Access 10 | . . . . . . . 1 . 2 . . 1 . . . . 1 . . . . . 2 . . . . 3 Terminal Hacks 105 | . 5 . 10 3 2 . 8 2 3 2 7 3 1 1 23 . . 2 3 . . 1 5 . 5 17 1 1 Record 23 | . . . . . 1 . . . . . . . 1 1 10 . . . . . . . . . 4 5 1 . Part Schematic 11 | . . . . . . . . . . . . . . . 7 . . . . . . . . . . 4 . . Robot Schematic 4 | . 1 . . . . . . . . . . . . . 3 . . . . . . . . . . . . . Robot Analysis 9 | . 1 . 2 1 . . 1 . . . . . . . . . . . . . . . . . . 4 . . Prototype ID Bank 15 | . 2 . 3 2 . . 1 . . . . . . . 3 . . . . . . . . . . 4 . . Open Door 1 | . . . . . . . . . . . . . . . . . . . . . . . . . 1 . . . Branch Access Points 1 | . . . . . . . . . . . 1 . . . . . . . . . . . . . . . . . Emergency Access Points 3 | . . . . . . . . 1 . 1 . . . . . . . 1 . . . . . . . . . . Terminal Index 2 | . . . . . . . 1 . . . . . . . . . . . . . . . 1 . . . . . Alert Level 9 | . . . 1 . . . 1 . 1 . 2 1 . . . . . . 1 . . 1 1 . . . . . Unreport Threat 20 | . . . 3 . . . 3 . 2 . 4 2 . . . . . . 2 . . . 3 . . . . 1 Hauler Manifests 2 | . 1 . . . . . 1 . . . . . . . . . . . . . . . . . . . . . Zone Layout 1 | . . . 1 . . . . . . . . . . . . . . . . . . . . . . . . . Garrison Registry 2 | . . . . . . . . . . 1 . . . . . . . 1 . . . . . . . . . . Patrol Navigation 1 | . . . . . . . . 1 . . . . . . . . . . . . . . . . . . . . Derelict Proto ID Bank 1 | . . . . . 1 . . . . . . . . . . . . . . . . . . . . . . . Fabricator Hacks 5 | . . . . . . . . . . . . 5 . . . . . . . . . . . . . . . . Load Schematic 3 | . . . . . . . . . . . . 3 . . . . . . . . . . . . . . . . Build 2 | . . . . . . . . . . . . 2 . . . . . . . . . . . . . . . . Repair Station Hacks 36 | . 2 . 6 . . . 5 . 6 . 6 9 . . . . . . . . . . 2 . . . . . Scan Component 20 | . 1 . 3 . . . 3 . 3 . 3 6 . . . . . . . . . . 1 . . . . . Repair 16 | . 1 . 3 . . . 2 . 3 . 3 3 . . . . . . . . . . 1 . . . . . Recycling Unit Hacks 3 | . . . . . . . . . . . . 1 . . . . . . . . . . 2 . . . . . Process 2 | . . . . . . . . . . . . 1 . . . . . . . . . . 1 . . . . . Retrieve Matter 1 | . . . . . . . . . . . . . . . . . . . . . . . 1 . . . . . Scanalyzer 7 | . . . . . . . . . 2 . 5 . . . . . . . . . . . . . . . . . Insert Component 4 | . . . . . . . . . 1 . 3 . . . . . . . . . . . . . . . . . Analyze 3 | . . . . . . . . . 1 . 2 . . . . . . . . . . . . . . . . . Garrison Access Hacks 4 | . . . . . . . 1 . 1 . . . . . . . 1 . . . . . 1 . . . . . Unlock Access 3 | . . . . . . . 1 . 1 . . . . . . . 1 . . . . . . . . . . . Seal Access 1 | . . . . . . . . . . . . . . . . . . . . . . . 1 . . . . . Unauthorized Hacks 39 | . 6 . 6 . . . 11 . 4 . 2 . . . . . 1 . 1 . . 3 3 . . . . 2 Terminals 37 | . 6 . 6 . . . 11 . 4 . 2 . . . . . 1 . 1 . . 3 1 . . . . 2 Assimilate 2 | . . . . . . . 2 . . . . . . . . . . . . . . . . . . . . . Botnet 9 | . 1 . . . . . 2 . . . 1 . . . . . 1 . 1 . . . 1 . . . . 2 Operators 1 | . . . . . . . 1 . . . . . . . . . . . . . . . . . . . . . Skim 22 | . 5 . 6 . . . 6 . 4 . 1 . . . . . . . . . . . . . . . . . Sabotage 3 | . . . . . . . . . . . . . . . . . . . . . . 3 . . . . . . Fabricators . | . . . . . . . . . . . . . . . . . . . . . . . . . . . . . Repair Stations 2 | . . . . . . . . . . . . . . . . . . . . . . . 2 . . . . . Patch 2 | . . . . . . . . . . . . . . . . . . . . . . . 2 . . . . . Recycling Units . | . . . . . . . . . . . . . . . . . . . . . . . . . . . . . Scanalyzers . | . . . . . . . . . . . . . . . . . . . . . . . . . . . . . Garrison Access . | . . . . . . . . . . . . . . . . . . . . . . . . . . . . . Data Cores Recovered 1 | . . . 1 . . . . . . . . . . . . . . . . . . . . . . . . . Used . | . . . . . . . . . . . . . . . . . . . . . . . . . . . . . Hacking Detections 84 | . 6 . 8 1 . . 6 3 6 3 9 10 . 1 . . 2 1 7 . . 5 10 . . . . 6 Full Trace Events 7 | . . . 1 . . . . . . 1 . 4 . . . . . . . . . . 1 . . . . . Feedback Events . | . . . . . . . . . . . . . . . . . . . . . . . . . . . . . Feedback Blocked . | . . . . . . . . . . . . . . . . . . . . . . . . . . . . . Robot Schematics Acquired 4 | . 1 . . . . . . . . . . . . . 3 . . . . . . . . . . . . . Robots Built . | . . . . . . . . . . . . . . . . . . . . . . . . . . . . . Authchips . | . . . . . . . . . . . . . . . . . . . . . . . . . . . . . Time . | . . . . . . . . . . . . . . . . . . . . . . . . . . . . . Total Robot Build Rating . | . . . . . . . . . . . . . . . . . . . . . . . . . . . . . Part Schematics Acquired 14 | . . . . . . . . . 1 . 2 . . . 7 . . . . . . . . . . 4 . . Parts Built 4 | . . . . . . . . . . . . 4 . . . . . . . . . . . . . . . . Authchips . | . . . . . . . . . . . . . . . . . . . . . . . . . . . . . Time 159 | . . . . . . . . . . . . 159 . . . . . . . . . . . . . . . . Total Part Build Rating 24 | . . . . . . . . . . . . 24 . . . . . . . . . . . . . . . . Parts Repaired 16 | . 1 . 3 . . . 2 . 3 . 3 3 . . . . . . . . . . 1 . . . . . Time 675 | . 26 . 115 . . . 64 . 102 . 127 187 . . . . . . . . . . 54 . . . . . Parts Recycled . | . . . . . . . . . . . . . . . . . . . . . . . . . . . . . Recycled Matter 278 | . . . . . . . . . . . . 265 . . . . . . . . . . 13 . . . . . Retrieved Matter 13 | . . . . . . . . . . . . . . . . . . . . . . . 13 . . . . . Retrieved Components . | . . . . . . . . . . . . . . . . . . . . . . . . . . . . . Parts Scanalyzed 3 | . . . . . . . . . 1 . 2 . . . . . . . . . . . . . . . . . Part Schematics Acquired 3 | . . . . . . . . . 1 . 2 . . . . . . . . . . . . . . . . . Parts Damaged . | . . . . . . . . . . . . . . . . . . . . . . . . . . . . . Bothacking | -11 -10 -10 -9 -9 -9 -8 -8 -8 -8 -8 -8 -7 -7 -7 -7 -6 -6 -6 -6 -6 -6 -6 -5 -5 -5 -5 -4 -4 ------------ Run | Yrd Mat Min Mat Min Exi Min Mat Gar Mat Gar Mat Fac Low Low Dat Pro Fac Gar Ext Cet Arc Hub Fac Upp Upp Zhi Pro Fac Used RIF Installer . | . . . . . . . . . . . . . . . . . . . . . . . . . . . . . Robots Hacked 1 | . . . . . . . . . . . . 1 . . . . . . . . . . . . . . . . Non-combat 1 | . . . . . . . . . . . . 1 . . . . . . . . . . . . . . . . Combat . | . . . . . . . . . . . . . . . . . . . . . . . . . . . . . Robot Hacks Applied 1 | . . . . . . . . . . . . 1 . . . . . . . . . . . . . . . . find_chute 1 | . . . . . . . . . . . . 1 . . . . . . . . . . . . . . . . Relay Couplers Released 22 | . . . . . . . . 4 . 10 . . . . . . . 8 . . . . . . . . . . Machine Destruction 18 | . . . . . . . . . . 10 . . . . . . . 8 . . . . . . . . . . Programmers 4 | . . . . . . . . 4 . . . . . . . . . . . . . . . . . . . . Fabnet Peak Effective % . | . . . . . . . . . . . . . . . . . . . . . . . . . . . . . Robots Rewired 19 | . . . . . . . . . . . . . . . . . . 5 14 . . . . . . . . . Allies Hacked . | . . . . . . . . . . . . . . . . . . . . . . . . . . . . . Hacks Repelled . | . . . . . . . . . . . . . . . . . . . . . . . . . . . . . Allies | -11 -10 -10 -9 -9 -9 -8 -8 -8 -8 -8 -8 -7 -7 -7 -7 -6 -6 -6 -6 -6 -6 -6 -5 -5 -5 -5 -4 -4 -------- Run | Yrd Mat Min Mat Min Exi Min Mat Gar Mat Gar Mat Fac Low Low Dat Pro Fac Gar Ext Cet Arc Hub Fac Upp Upp Zhi Pro Fac Total Allies 30 | . . . . 2 . . 1 . . . . . . . . . . 5 17 5 . . . . . . . . Largest Group 16 | . . . . 2 . . 1 . . . . . . . . . . 2 16 14 3 3 . . . . . . Highest-Rated Group 679 | . . . . 62 . . 10 . . . . . . . . . . 86 593 679 288 288 . . . . . . Highest-Rated Ally 159 | . . . . 31 . . 10 . . . . . . . . . . 46 159 159 96 96 . . . . . . Total Orders 6 | . . . . . . . 1 1 . . . . 1 . . . . . 2 . . 1 . . . . . . STAY 3 | . . . . . . . 1 . . . . . . . . . . . 1 . . 1 . . . . . . FOLLOW 1 | . . . . . . . . . . . . . . . . . . . 1 . . . . . . . . . EXPLORE 2 | . . . . . . . . 1 . . . . 1 . . . . . . . . . . . . . . . Ally Attacks 310 | . . . . 17 . . . . . . . . . . . . . 9 143 86 . 55 . . . . . . Total Damage 8881 | . . . . 131 . . . . . . . . . . . . . 244 3662 2497 . 2347 . . . . . . Kills 51 | . . . . 3 . . . . . . . . . . . . . 1 21 10 . 16 . . . . . . Allies Corrupted 2 | . . . . . . . . . . . . . . . . . . . 1 . . 1 . . . . . . Allies Melted . | . . . . . . . . . . . . . . . . . . . . . . . . . . . . . Intel | -11 -10 -10 -9 -9 -9 -8 -8 -8 -8 -8 -8 -7 -7 -7 -7 -6 -6 -6 -6 -6 -6 -6 -5 -5 -5 -5 -4 -4 ------- Run | Yrd Mat Min Mat Min Exi Min Mat Gar Mat Gar Mat Fac Low Low Dat Pro Fac Gar Ext Cet Arc Hub Fac Upp Upp Zhi Pro Fac Robot Analysis Total 9 | . 1 . 2 1 . . 1 . . . . . . . . . . . . . . . . . . 4 . . Derelict Logs Recovered 11 | . . 1 . 2 . . . . . . . . 2 2 . 1 . . . . . . . . 2 . 1 . Drone Launches 2 | . . . . . . . . 1 . . . . 1 . . . . . . . . . . . . . . . Drone Recoveries 1 | . . . . . . . . 1 . . . . . . . . . . . . . . . . . . . . Exploration | -11 -10 -10 -9 -9 -9 -8 -8 -8 -8 -8 -8 -7 -7 -7 -7 -6 -6 -6 -6 -6 -6 -6 -5 -5 -5 -5 -4 -4 ------------- Run | Yrd Mat Min Mat Min Exi Min Mat Gar Mat Gar Mat Fac Low Low Dat Pro Fac Gar Ext Cet Arc Hub Fac Upp Upp Zhi Pro Fac Turns Passed 41081 | 68 1238 1499 2993 996 397 868 3210 1846 1905 1579 2812 3748 811 1201 160 1400 703 1844 2743 523 74 557 2588 560 1048 355 1218 2137 Spaces Moved 17594 | 41 492 530 1375 562 248 540 843 732 654 679 904 1625 465 693 103 838 134 648 889 214 47 275 1303 347 632 177 640 964 Core 37 | 5 . . . . . . . . . . . . . . . . . . . . . . . . . . . 32 Treads 17452 | 36 492 530 1375 562 248 540 843 732 654 679 904 1625 465 693 103 838 134 648 889 214 47 275 1303 347 632 177 640 827 Legs . | . . . . . . . . . . . . . . . . . . . . . . . . . . . . . Wheels . | . . . . . . . . . . . . . . . . . . . . . . . . . . . . . Hover . | . . . . . . . . . . . . . . . . . . . . . . . . . . . . . Flight 105 | . . . . . . . . . . . . . . . . . . . . . . . . . . . . 105 Fastest Speed 37 | 50 160 240 160 160 160 160 160 160 160 158 153 158 158 156 156 156 236 236 160 160 160 160 160 160 160 160 160 37 Average Speed 184 | 146 214 240 162 160 160 160 229 205 237 205 199 181 158 156 156 159 236 238 224 160 160 160 160 160 160 160 160 154 Slowest Speed 242 | 160 240 240 240 240 160 160 240 240 240 238 238 242 158 235 156 236 236 240 240 160 160 160 160 160 160 160 160 240 Overloaded Moves . | . . . . . . . . . . . . . . . . . . . . . . . . . . . . . Propulsion Burnouts . | . . . . . . . . . . . . . . . . . . . . . . . . . . . . . Robots Hopped 2 | . . . . . . . . . . . . . . . . . . . . . . . . . . . . 2 Cave-ins Triggered . | . . . . . . . . . . . . . . . . . . . . . . . . . . . . . Teleports 1 | . . . . . . . . . . . . . . . . . . . . . . . . . . . . 1 Exploration Rate (%) 62 | 4 84 74 93 98 60 94 54 90 43 67 55 45 65 87 68 90 4 77 89 56 64 25 32 53 82 60 84 23 Regions Visited 28 Branch Regions 16 Pre-discovered Areas 11 | . 2 . 1 . 1 . 2 . . . . . 1 . 1 . . . . . . . . . . 3 . . Known Exits Taken 12 | . 1 1 1 . . 1 1 . 1 . 1 1 . . . 1 1 . . . . 1 . . . . 1 . Unknown Exits Taken 13 | 1 . . . 1 1 . . . . . . . 1 1 1 . . . 1 1 1 . 1 1 1 1 . . Scrap Searched 29 | . . 1 . 2 . 2 . . . . . . 4 5 . 4 . . . . . . . 4 4 . 3 . Spaces Dug 73 | . . . . . . . 2 . . . 16 6 3 . . 9 . 2 1 . . 6 6 . . . . 22 Terrain Destroyed 1087 | . . . 4 3 . . 7 69 60 . 63 135 24 25 . 18 12 41 72 1 . 10 159 . 15 . 12 357 Melee 5 | . . . . . . . . . . . . . . . . . . . . . . . 5 . . . . . Projectile 535 | . . . 4 3 . . 7 5 34 . 63 82 24 25 . 18 12 38 72 1 . 10 18 . 15 . 12 92 AOE 547 | . . . . . . . . 64 26 . . 53 . . . . . 3 . . . . 136 . . . . 265 Terrain Rammed . | . . . . . . . . . . . . . . . . . . . . . . . . . . . . . Walls Destroyed . | . . . . . . . . . . . . . . . . . . . . . . . . . . . . . Machines Disabled . | . . . . . . . . . . . . . . . . . . . . . . . . . . . . . Actions | -11 -10 -10 -9 -9 -9 -8 -8 -8 -8 -8 -8 -7 -7 -7 -7 -6 -6 -6 -6 -6 -6 -6 -5 -5 -5 -5 -4 -4 --------- Run | Yrd Mat Min Mat Min Exi Min Mat Gar Mat Gar Mat Fac Low Low Dat Pro Fac Gar Ext Cet Arc Hub Fac Upp Upp Zhi Pro Fac Total 23965 | 47 588 703 1839 597 249 543 1955 898 885 764 1747 2239 506 770 102 864 493 800 1480 402 46 371 1687 350 652 219 814 1355 Wait 4263 | . 44 144 241 4 . . 1008 57 137 10 710 439 13 51 . 1 341 23 327 155 . 66 187 . 1 . 166 138 Move 17563 | 40 491 529 1374 561 247 539 843 731 654 676 903 1624 464 692 102 837 134 647 888 213 46 274 1302 346 631 176 639 960 Hop 2 | . . . . . . . . . . . . . . . . . . . . . . . . . . . . 2 Pick Up 146 | 2 6 1 17 . 1 1 6 6 12 9 14 13 3 . . 3 1 5 3 5 . 2 20 . 3 4 . 9 Fast Attach 92 | 5 2 . 10 2 . . 8 1 3 . 4 7 2 4 . . . 2 3 7 . 2 5 . . 7 . 18 Attach 96 | . . 1 6 . . . 5 9 3 . 7 4 1 . . 1 2 5 7 . . 5 17 . 1 . . 22 Detach 26 | . . . 4 . . . . 1 . . 1 1 . . . . . 1 . 4 . 2 4 . . . . 8 Swap 154 | . 3 . 17 . . . 5 10 10 10 6 20 2 1 . 2 3 13 10 4 . 1 9 4 2 2 . 20 Drop 140 | . . . 19 . 1 1 4 1 10 7 13 23 5 4 . 3 . 4 4 14 . 3 6 . 3 10 . 5 Fire 1138 | . 41 26 146 30 . . 69 80 55 44 74 86 16 17 . 17 11 72 68 . . 14 86 . 11 . 9 166 Melee 29 | . . . . . . . . . . . . . . . . . . . . . . . 9 . . 20 . . Ram . | . . . . . . . . . . . . . . . . . . . . . . . . . . . . . Kick . | . . . . . . . . . . . . . . . . . . . . . . . . . . . . . Crush 111 | . 1 2 5 . . 2 7 . 1 . 15 22 . 1 . . 1 . 3 . . 2 42 . . . . 7 Escape Stasis 22 | . . . . . . . . 2 . 8 . . . . . . . 6 6 . . . . . . . . . Rewire 183 | . . . . . . . . . . . . . . . . . . 22 161 . . . . . . . . . Trap . | . . . . . . . . . . . . . . . . . . . . . . . . . . . . . Miscellaneous . | . . . . . . . . . . . . . . . . . . . . . . . . . . . . . Route ------- -11/Scrapyard -10/Materials (discovered 5 exits: *Mat x3 / *Min / Sub) -10/Mines (discovered 2 exits: *Mat / Sub) -9/Materials (discovered 4 exits: *Mat x3 / *Min) -9/Mines (discovered 3 exits: *Mat x2 / *Exi) -9/Exiles -8/Mines (discovered 2 exits: *Mat x2) -8/Materials (discovered 4 exits: *Fac x2 / *Sto / Gar) -8/Garrison (discovered 4 exits: *Fac x3 / *Mat) -8/Materials (discovered 3 exits: *Fac / *Sto / Gar) -8/Garrison (discovered 3 exits: *Mat x3) -8/Materials (discovered 3 exits: *Fac / *Sto x2) -7/Factory (discovered 6 exits: *Fac x4 / *Low x2) -7/Lower Caves -7/Lower Caves (discovered 2 exits: *Fac / *Dat) -7/Data Miner -6/Proximity Caves -6/Factory (discovered 3 exits: Fac / Low / Gar) -6/Garrison (discovered 4 exits: *Ext x4) -6/Extension (discovered 2 exits: *Fac / *Cet) -6/Cetus (discovered 2 exits: *Fac / [*Arc]) -6/Archives -6/Hub_04(d) -5/Factory -5/Upper Caves -5/Upper Caves -5/Zhirov -4/Proximity Caves -4/Factory (discovered 4 exits: *Res x2 / *Upp x2) History --------- Turn | Location | Event 9 | -11/Scrapyard | Discovered new exit (range 15) 69 | -11/Scrapyard | Entered Materials 314 | -10/Materials | Build established: Mutant 393 | -10/Materials | Discovered new exit (range 16) 541 | -10/Materials | Central database locked down 629 | -10/Materials | Learned 2 Storage zone layouts 709 | -10/Materials | Identified exit to Mines 709 | -10/Materials | Identified exit to Materials 780 | -10/Materials | Learned 4 Recycling zone layouts 841 | -10/Materials | Learned location of 2 exits from Mines 869 | -10/Materials | Derelicts attacked the area 892 | -10/Materials | Learned location of Mines (-10) 931 | -10/Materials | Learned 4 Subcaves zone layouts 962 | -10/Materials | Identified exit to Subcaves 1004 | -10/Materials | Learned location of 2 exits from Materials 1190 | -10/Materials | Repaired Lgt. Treads 1193 | -10/Materials | Learned Storage trap positions 1307 | -10/Materials | Entered Mines 1308 | -10/Mines | Assembled infested the area 1318 | -10/Mines | Met a Derelict bent on vengeance 1854 | -10/Mines | Learned Materials terminal intel 2806 | -10/Mines | Entered Materials 2806 | -9/Materials | Evolved 2 slots: Propulsion x1, Utility x1 2807 | -9/Materials | Identified exit to Materials 2807 | -9/Materials | Identified exit to Mines 2808 | -9/Materials | Loaded intel: 12 terminal locations 3261 | -9/Materials | Discovered exit to Materials (range 10) 3365 | -9/Materials | Lost 3 parts (1n1u1w) 4237 | -9/Materials | Build established: Scavenger-Mutant 4626 | -9/Materials | Build established: Mutant 4923 | -9/Materials | Learned 4 Recycling zone layouts 4984 | -9/Materials | Learned Storage garrison access intel 5034 | -9/Materials | Learned location of 3 exits from Materials 5072 | -9/Materials | Learned location of 1 exit from Storage 5090 | -9/Materials | Central database locked down 5121 | -9/Materials | Discovered exit to Materials (range 5) 5124 | -9/Materials | Learned 4 Recycling zone layouts 5156 | -9/Materials | Learned location of Storage (-8) 5197 | -9/Materials | Learned 4 Recycling zone layouts 5520 | -9/Materials | Repaired Shield Generator 5572 | -9/Materials | Repaired Cld. Ion Engine 5631 | -9/Materials | Repaired Imp. Light Cannon 5799 | -9/Materials | Entered Mines 6024 | -9/Mines | Received a Mining Laser from a helpful Derelict 6070 | -9/Mines | Met a Derelict testing a Signal Generator 6074 | -9/Mines | Learned Materials emergency access door positions 6787 | -9/Mines | Deemed a non-threat by the Exiles lab entrance 6788 | -9/Mines | Discovered new exit (range 5) 6795 | -9/Mines | Entered Exiles 6835 | -9/Exiles | Met 8R-AWN 6861 | -9/Exiles | Met EX-HEX 6904 | -9/Exiles | Met EX-BIN 6997 | -9/Exiles | Aligned with FarCom system 6999 | -9/Exiles | Given EX-Vault access code 7037 | -9/Exiles | Opened EX-Vault 7046 | -9/Exiles | Found Supersonic Drone Bay 7079 | -9/Exiles | Warned to stay clear of 0b10 Research branches 7123 | -9/Exiles | Met EX-DEC 7130 | -9/Exiles | Learned location of Zion (-6) 7179 | -9/Exiles | Discovered new exit (range 10) 7192 | -9/Exiles | Left Exiles lab with Supersonic Drone Bay 7192 | -9/Exiles | Entered Mines 7634 | -8/Mines | Discovered exit to Materials (range 8) 7800 | -8/Mines | Discovered exit to Materials (range 9) 8060 | -8/Mines | Entered Materials 8060 | -8/Materials | Evolved 2 slots: Utility x1, Weapon x1 8061 | -8/Materials | Identified exit to Factory 8061 | -8/Materials | Identified exit to Storage 8371 | -8/Materials | Build established: Tank 8499 | -8/Materials | Repaired Shield Generator 8532 | -8/Materials | Repaired Imp. Light Cannon 8766 | -8/Materials | Garrison activated, responded to threat 9619 | -8/Materials | Garrison activated, responded to threat 10387 | -8/Materials | Garrison activated, responded to threat 10555 | -8/Materials | Build established: Skirmisher 10699 | -8/Materials | Garrison activated, responded to threat 10755 | -8/Materials | Central database locked down 10838 | -8/Materials | Learned 2 Lower Caves zone layouts 10911 | -8/Materials | Learned location of 2 exits from Factory 10973 | -8/Materials | Learned location of Lower Caves (-6) 11027 | -8/Materials | Learned Factory scanalyzer intel 11109 | -8/Materials | Build established: Tank 11127 | -8/Materials | Learned location of 3 exits from Factory 11270 | -8/Materials | Identified exit to Garrison 11270 | -8/Materials | Entered Garrison 11324 | -8/Garrison | Triggered checkpoint 11612 | -8/Garrison | Discovered exit to Factory (range 29) 11614 | -8/Garrison | Triggered checkpoint 11614 | -8/Garrison | Discovered exit to Factory (range 50) 11616 | -8/Garrison | Discovered exit to Factory (range 50) 11780 | -8/Garrison | Lost 4 parts (1p1n1u1w) 11928 | -8/Garrison | Triggered checkpoint 12072 | -8/Garrison | Triggered checkpoint 12270 | -8/Garrison | Triggered checkpoint 12542 | -8/Garrison | Triggered checkpoint 12838 | -8/Garrison | Triggered checkpoint 13052 | -8/Garrison | Triggered checkpoint 13060 | -8/Garrison | Discovered new exit (range 12) 13116 | -8/Garrison | Entered Materials 13489 | -8/Materials | Discovered exit to Storage (range 13) 13909 | -8/Materials | Discovered exit to Factory (range 15) 14316 | -8/Materials | First assault squad dispatched 14537 | -8/Materials | Core integrity fell below 50% 14800 | -8/Materials | Repaired Imp. Treads 14839 | -8/Materials | Repaired Hrd. Medium Armor Plating 14873 | -8/Materials | Repaired Rocket Launcher 14898 | -8/Materials | Build established: Hacker-Skirmisher 15021 | -8/Materials | Identified exit to Garrison 15021 | -8/Materials | Entered Garrison 15163 | -8/Garrison | Triggered checkpoint 15180 | -8/Garrison | Garrison Relay disabled 15311 | -8/Garrison | Triggered checkpoint 15351 | -8/Garrison | Triggered checkpoint 15601 | -8/Garrison | Triggered checkpoint 15621 | -8/Garrison | Build established: Skirmisher 15669 | -8/Garrison | Discovered new exit (range 74) 15669 | -8/Garrison | Discovered new exit (range 57) 15669 | -8/Garrison | Discovered new exit (range 24) 15785 | -8/Garrison | Triggered checkpoint 16368 | -8/Garrison | Attempted to access garrison exit controls, blocked by remote lockdown 16404 | -8/Garrison | Garrison Relay disabled 16429 | -8/Garrison | Build established: Gunner 16492 | -8/Garrison | Attempted to access garrison exit controls, blocked by remote lockdown 16600 | -8/Garrison | Entered Materials 17048 | -8/Materials | Build established: Skirmisher 17085 | -8/Materials | Core integrity fell below 20% 17228 | -8/Materials | Repaired Assault Cannon 17267 | -8/Materials | Repaired Assault Cannon 17320 | -8/Materials | Repaired Cld. Ion Engine 17381 | -8/Materials | Build established: Mutant 17849 | -8/Materials | Build established: Skirmisher 18392 | -8/Materials | Lost 3 parts (2n1u) 18481 | -8/Materials | Discovered exit to Factory (range 7) 19412 | -8/Materials | Entered Factory 19412 | -7/Factory | Evolved 2 slots: Propulsion x1, Utility x1 19413 | -7/Factory | Identified exit to Lower Caves 19414 | -7/Factory | Identified exit to Factory 19415 | -7/Factory | Loaded intel: 4 scanalyzer locations 19685 | -7/Factory | Repaired Enh. Gauss Cannon 19730 | -7/Factory | Garrison activated, responded to threat 19739 | -7/Factory | Repaired Broken Adv. Treads 20085 | -7/Factory | Fabricated Mass Driver? 20776 | -7/Factory | Fabricated Mass Driver (x2) 21228 | -7/Factory | Build established: Tank 22419 | -7/Factory | Build established: Skirmisher 22884 | -7/Factory | Repaired Broken Adv. Cooling System 23012 | -7/Factory | First assault squad dispatched 23160 | -7/Factory | Entered Lower Caves 23224 | -7/Lower Caves | Met a Warlord Commander 23225 | -7/Lower Caves | Learned location of Warlord (-4) 23226 | -7/Lower Caves | Warlord Commander delivered Encrypted Comm Array 23447 | -7/Lower Caves | Learned Factory stockpile data 23453 | -7/Lower Caves | Build established: Gunner 23639 | -7/Lower Caves | Learned Factory emergency access door positions 23879 | -7/Lower Caves | Discovered new exit (range 8) 23971 | -7/Lower Caves | Entered another Lower Caves area 24013 | -7/Lower Caves | Learned location of 1 exit from Factory 24104 | -7/Lower Caves | Discovered exit to Factory (range 5) 24513 | -7/Lower Caves | Encountered a Warlord checkpoint 24585 | -7/Lower Caves | Ambushed by research squad 24783 | -7/Lower Caves | Learned 4 Factory zone layouts 25060 | -7/Lower Caves | Discovered new exit (range 9) 25172 | -7/Lower Caves | Entered Data Miner 25172 | -7/Data Miner | Discovered new exit (range 6) 25202 | -7/Data Miner | Met Data Miner 25230 | -7/Data Miner | Learned location of Section 7 (-2) 25230 | -7/Data Miner | Acquired the access code to Warlord's prototype stash 25255 | -7/Data Miner | Received God Mode back door access code from Data Miner 25332 | -7/Data Miner | Entered Proximity Caves 25392 | -6/Proximity Caves | Spotter reported a threat 25782 | -6/Proximity Caves | Learned Factory emergency access door positions 26412 | -6/Proximity Caves | Discovered exit to Factory (range 15) 26732 | -6/Proximity Caves | Entered Factory 26732 | -6/Factory | Evolved 2 slots: Power x1, Utility x1 26733 | -6/Factory | Identified exit to Lower Caves 26733 | -6/Factory | Identified exit to Factory 27025 | -6/Factory | Build established: Tank 27110 | -6/Factory | Identified exit to Garrison 27435 | -6/Factory | Entered Garrison 27479 | -6/Garrison | Triggered checkpoint 27859 | -6/Garrison | Triggered checkpoint 27972 | -6/Garrison | Spotted B-75 Beast 28000 | -6/Garrison | Destroyed B-75 Beast 28042 | -6/Garrison | Lost 3 parts (1n2w) 28075 | -6/Garrison | Triggered checkpoint 28159 | -6/Garrison | Triggered checkpoint 28308 | -6/Garrison | Discovered new exit (range 15) 28533 | -6/Garrison | Triggered checkpoint 28576 | -6/Garrison | Garrison Relay disabled 28757 | -6/Garrison | Build established: Scavenger-Tank 28771 | -6/Garrison | Discovered new exit (range 11) 28802 | -6/Garrison | Discovered new exit (range 53) 28802 | -6/Garrison | Discovered new exit (range 6) 28802 | -6/Garrison | Discovered new exit (range 74) 28802 | -6/Garrison | Discovered new exit (range 44) 28903 | -6/Garrison | Spotted B-75 Beast 29163 | -6/Garrison | Garrison Relay disabled 29213 | -6/Garrison | Triggered checkpoint 29279 | -6/Garrison | Entered Extension 29279 | -6/Extension | Accompanied by 3 allies 29679 | -6/Extension | Build established: Tank 29920 | -6/Extension | Rescued A7 29947 | -6/Extension | Spotted B-75 Beast 29979 | -6/Extension | Destroyed B-75 Beast 30625 | -6/Extension | Build established: Commander-Tank 30866 | -6/Extension | Spotted B-75 Beast 30876 | -6/Extension | Allies destroyed B-75 Beast 31029 | -6/Extension | First assault squad dispatched 31046 | -6/Extension | Incoming assault squad redirected 31539 | -6/Extension | Rescued a captive Derelict 31540 | -6/Extension | Rescued a captive Derelict 31621 | -6/Extension | Incoming investigation squad redirected 31692 | -6/Extension | Discovered exit to Factory (range 10) 31693 | -6/Extension | Discovered new exit (range 6) 32022 | -6/Extension | Entered Cetus 32022 | -6/Cetus | Accompanied by 14 allies (A7) 32027 | -6/Cetus | Acquired a Cetus Manufacturing Module code from A7 32059 | -6/Cetus | Spotted Cetus Guard 32059 | -6/Cetus | Spotted Cetus Guard 32059 | -6/Cetus | Spotted Cetus Guard 32067 | -6/Cetus | Spotted Cetus Guard 32074 | -6/Cetus | Allies destroyed Cetus Guard 32075 | -6/Cetus | Allies destroyed Cetus Guard 32096 | -6/Cetus | Allies destroyed Cetus Guard 32098 | -6/Cetus | Allies destroyed Cetus Guard 32111 | -6/Cetus | System corruption reached 10% 32123 | -6/Cetus | Lost 11 allies 32193 | -6/Cetus | Started Cetus Manufacturing Module 32212 | -6/Cetus | Discovered new exit (range 16) 32218 | -6/Cetus | Manufactured an Enhanced Grunt 32243 | -6/Cetus | Manufactured an Enhanced Grunt 32268 | -6/Cetus | Manufactured an Enhanced Grunt 32293 | -6/Cetus | Manufactured an Enhanced Grunt 32318 | -6/Cetus | Manufactured an Enhanced Grunt 32355 | -6/Cetus | Spotted Cetus Guard 32356 | -6/Cetus | Spotted Cetus Guard 32358 | -6/Cetus | Spotted Cetus Guard 32359 | -6/Cetus | Spotted Cetus Guard 32368 | -6/Cetus | Allies destroyed Cetus Guard 32371 | -6/Cetus | Allies destroyed Cetus Guard 32386 | -6/Cetus | Allies destroyed Cetus Guard 32388 | -6/Cetus | Allies destroyed Cetus Guard 32391 | -6/Cetus | Found Prototype Device 32391 | -6/Cetus | Identified Exp. Thermal Shield 32400 | -6/Cetus | Lost 3 allies 32423 | -6/Cetus | Discovered exit to Factory (range 16) 32435 | -6/Cetus | Met Revision 17 32545 | -6/Cetus | Entered Archives 32545 | -6/Archives | Accompanied by 4 allies (A7) 32577 | -6/Archives | Met Zhirov 32583 | -6/Archives | Reinforcements dispatched to Archives 32592 | -6/Archives | Discovered new exit (range 13) 32619 | -6/Archives | Entered Hub_04(d) 32619 | -6/Hub_04(d) | Accompanied by 3 allies 32619 | -6/Hub_04(d) | Discovered exit to Factory (range 10) 32664 | -6/Hub_04(d) | Build established: Scavenger-Tank 32697 | -6/Hub_04(d) | Garrison activated, responded to threat 32871 | -6/Hub_04(d) | Incoming investigation squad redirected 33010 | -6/Hub_04(d) | Network Hub disabled 33081 | -6/Hub_04(d) | Spotted Lightning 33088 | -6/Hub_04(d) | Spotted Lightning 33098 | -6/Hub_04(d) | Destroyed Lightning 33104 | -6/Hub_04(d) | Spotted Lightning 33124 | -6/Hub_04(d) | Lost 3 allies 33173 | -6/Hub_04(d) | System corruption reached 30% 33176 | -6/Hub_04(d) | Entered Factory 33176 | -5/Factory | Evolved 2 slots: Utility x2 33639 | -5/Factory | Incoming investigation squad redirected 33989 | -5/Factory | Lost 4 parts (1p1u2w) 34146 | -5/Factory | Lost 5 parts (1p3u1w) 34165 | -5/Factory | Incoming investigation squad redirected 34564 | -5/Factory | Build established: Skirmisher 34683 | -5/Factory | Discovered new exit (range 7) 34936 | -5/Factory | Build established: Mutant 35047 | -5/Factory | Repaired Centrium Heavy Treads 35376 | -5/Factory | Build established: Gunner 35433 | -5/Factory | Incoming investigation squad redirected 35764 | -5/Factory | Entered Upper Caves 36102 | -5/Upper Caves | Discovered new exit (range 16) 36276 | -5/Upper Caves | Spotted B-75 Beast 36324 | -5/Upper Caves | Entered another Upper Caves area 36447 | -5/Upper Caves | Learned Factory stockpile data 36611 | -5/Upper Caves | Discovered new exit (range 8) 36717 | -5/Upper Caves | Build established: Tank 36779 | -5/Upper Caves | Learned location of 2 exits from Factory 37000 | -5/Upper Caves | Learned Factory stockpile data 37000 | -5/Upper Caves | Learned Factory terminal intel 37000 | -5/Upper Caves | Learned Armory terminal intel 37372 | -5/Upper Caves | Entered Zhirov 37372 | -5/Zhirov | Discovered new exit (range 3) 37436 | -5/Zhirov | Learned location of Quarantine (-3) 37436 | -5/Zhirov | Learned location of Testing (-2) 37436 | -5/Zhirov | Learned location of Command (-1) 37468 | -5/Zhirov | Found Alien Artifact 37488 | -5/Zhirov | Found Alien Artifact 37488 | -5/Zhirov | Identified Integrated Reactor 37488 | -5/Zhirov | Installed Integrated Reactor, increased core energy generation (+10) 37727 | -5/Zhirov | Entered Proximity Caves 37820 | -4/Proximity Caves | Identified exit to Factory 38725 | -4/Proximity Caves | Attracted the attention of an 0b10 checkpoint 38799 | -4/Proximity Caves | Received a Behemoth hack from an annoying Tinkerer 38945 | -4/Proximity Caves | Entered Factory 38945 | -4/Factory | Evolved 2 slots: Utility x2 38946 | -4/Factory | Identified exit to Research 38946 | -4/Factory | Identified exit to Upper Caves 38948 | -4/Factory | Loaded intel: 24 terminal locations 39010 | -4/Factory | Found Prototype Processor 39010 | -4/Factory | Identified Exp. Melee Analysis Suite 39130 | -4/Factory | Discovered exit to Research (range 7) 39347 | -4/Factory | Build established: Scavenger-Tank 39452 | -4/Factory | Assembled infested ambush trap array 39473 | -4/Factory | Incoming assault squad redirected 39519 | -4/Factory | Garrison activated, responded to threat 39746 | -4/Factory | Garrison activated, responded to threat 39819 | -4/Factory | Found Prototype Launcher 39819 | -4/Factory | Identified Scatter Rocket Array 39854 | -4/Factory | Found Scatter Rocket Array 39929 | -4/Factory | Build established: Gunner 39943 | -4/Factory | Found Hvy. Reactive Plating 39986 | -4/Factory | Found Hvy. Reactive Plating 40023 | -4/Factory | Cargo convoy interrupted 40027 | -4/Factory | System corruption reached 10% 40138 | -4/Factory | Lost 6 parts (1p2n2u1w) 40155 | -4/Factory | Destroyed 28 combat bots 40158 | -4/Factory | Found Prototype Device 40158 | -4/Factory | Identified Exp. Focal Shield 40162 | -4/Factory | Found Prototype Launcher 40162 | -4/Factory | Identified Point Singularity Launcher 40169 | -4/Factory | Found Prototype Device 40169 | -4/Factory | Identified Thermal Barrier 40173 | -4/Factory | Found Prototype Processor 40173 | -4/Factory | Identified Exp. Core Analyzer 40177 | -4/Factory | Found Exp. Core Analyzer 40195 | -4/Factory | First assault squad dispatched 40506 | -4/Factory | Incoming assault squad redirected 40579 | -4/Factory | Destroyed 9 combat bots 40579 | -4/Factory | Lost 10 parts (2p1n3u4w) 40757 | -4/Factory | Identified Transdimensional Reconstructor 40757 | -4/Factory | Warped through subspace 40835 | -4/Factory | Build established: Mutant 41017 | -4/Factory | Released all parts (6) 41021 | -4/Factory | Core integrity fell below 50% 41039 | -4/Factory | High security lockdown imminent 41073 | -4/Factory | Discovered exit to Upper Caves (range 14) 41078 | -4/Factory | Core integrity fell below 20% 41082 | -4/Factory | Destroyed by H-71 Marshal with Heavy Mass Driver Last Messages --------------- 41063_ Connecting with Garrison Access... 41070_ System corrupted: Matter fused (-8). 41070_ Acquired 7 matter. 41070_ Acquired 21 matter. 41073_ EXIT=FOUND: UPPER CAVES 41073_ Lrn. Terrain Scanner destroyed. 41073_ Critical hit (Blast). 41075_ C-30 ARC bursts open, deploying its payload. 41075_ D-63 Destroyer unfolds itself. 41075_ Penetrated by Slug. 41075_ Field Propulsion Array destroyed. 41075_ Critical hit (Blast). 41077_ Fusion Modulator explodes. 41077_ Nuclear Reactor explodes. 41077_ Exp. Focal Shield destroyed. 41079_ Penetrated by Slug. 41079_ Field Propulsion Array destroyed. 41079_ Knocked back. 41081_ Acquired 1 matter. 41082_ Penetrated by Slug. Map ----- +----------------------------------------------------+ | ????????# """"""""" # % % | | ????????# # | | ????????# """"""""" ####+######+ | | ????????# ## # | | ????????#%""""""""" ## # % | | ? ? ??# ## # % | | # ???#"#"##"### #### # % | | # ??# """ # # | | # ?# "" #"" #%% | | # ## "" #"" # | | # #; " p #"" # | | # G !#### | | # "" #??? | | # #"" #??? | | # d #"" #??? | | # d # #??? | | #### # ##########??? | | ???## # #####???????????? | | ????# # #???????????#???? | | ????# # H #???????????????? | | ????# #???????????????? | | ????# #???#???????????? | | ????# #???????????????? | | ???## # #???????????????? | | ???#! H ####???????????????? | | ???# > @ ##??????????????????? | | ???#[ ! % #???????????????????? | | ???## ## ###??????????????????#? | | ????#??####?????????????????????? | | ????????????????????????????????? | | ????????????????????????????????? | | ?????w??????????????????????????? | | ????????????????????????????????? | | ????????????????????????????????? | | ????????????????????????????????? | | ???????????????????????""???????? | | ?????????????Y?????????""???????? | | ???????????????????????T"???????? | | ???????????????????????""???????? | | ???????????????????????""???????? | | ????????????????????????????????? | | ????????????????????????????????? | | ????????????????????????????????? | | ????????????????????????????????? | | ????????????????????????????????? | | ????????????????????????????????? | | ????????????????????????????????? | | ????????????????????????????????? | | ????????????????????????????????? | | ????????????????????????????????? | +----------------------------------------------------+ Best States ------------- Heat Dissipation 74 Coolant Potential 100 Energy Generation 51 Energy Capacity 600 Matter Stores 300 Matter Capacity 300 Sight Range 16 Terrain Scan Range 24 Terrain Scan Density 10 Jamming Range 14 Corruption Containment 12 Armor Coverage 1200 Resistance: KI 40 Resistance: TH 50 Weapon Shielding 90 Weapon Cycling 30 Evasion (%) 62 Targeting Accuracy 8 Core Analysis 11 Recoil Reduction 4 Matter Filtering 75 Offensive Hacking 12 Defensive Hacking 14 Item Schematics ----------------- Adv. System Shield | -8/Materials | Scanalyzed Mass Driver | -8/Materials | Scanalyzed Adv. Cooling System | -8/Materials | Scanalyzed Combat Drone Bay | -7/Data Miner | Free Lgt. Regenerative Plating | -7/Data Miner | Free Cld. Aerolev Unit | -7/Data Miner | Free Gravity Neutralizer | -7/Data Miner | Free Ion Burst Cannon | -7/Data Miner | Free Linear Gravjet | -7/Data Miner | Free Imp. Kinecellerator | -7/Data Miner | Free Assault Drone Bay | -5/Zhirov | Free Exp. Heat Sink | -5/Zhirov | Free Exp. Optical Array | -5/Zhirov | Free Imp. Arc Thrower | -5/Zhirov | Free Robot Schematics ------------------ M-13 Machinist | -10/Materials | Hacked S-27 Virus | -7/Data Miner | Free G-47 Trooper | -7/Data Miner | Free H-55 Commando | -7/Data Miner | Free Fabricated ------------ Mass Driver | x2 | -7/Factory Mass Driver | x2 | -7/Factory Alien Tech Used ----------------- Integrated Reactor Transdimensional Reconstructor Achievements -------------- None Challenges ------------ None Game ------ Seed SuperdenseAerolevInterrupter Manual? 0 Play Time 02:55:36 Cumulative 638.9 hours Start 2025.03.01 @ 10:34:49 End 2025.03.01 @ 17:47:57 Sessions 9 Manual Loads 0 Difficulty Rogue Special Mode None Game No. 343 Rogue 343 Adventurer 0 Explorer 0 Win Type - Total 51 Types 34/4/5/1/1/1/3/1/1 Lore% 89 Gallery% 88 Achievement% 88 Wizard Run 0 Options --------- Layout 0 ASCII 0 Keyboard 1 Movement Numpad Keybinds 0 Fullscreen 2 Font 18/SmallcapsGlow Map View 76x50 Zoom Use 0% Tactical HUD 1 Map Filters NONE Filters NONE Steam 1 RUN: 1e7e0ed9-93f2-4b49-bcd2-692493d105ff